[Event "1st Festival Galdar 2024"]
[Site "Galdar"]
[Date "2024.09.05"]
[Round "5.10"]
[White "Mouhamad, Joachim"]
[Black "Rakotomaharo, Fy Antenaina"]
[Result "0-1"]
[Annotator "TA"]
[ECO "C60"]
[WhiteElo "2260"]
[BlackElo "2440"]
[PlyCount "54"]
[EventDate "2024.09.02"]
[EventType "swiss"]
[EventCountry "ESP"]
[SourceTitle "playchess.com"]
[Source "ChessBase"]
[SourceQuality "1"]
[TimeControl "5400+30"]

{[%evp 9,54,20,19,19,25,26,42,22,20,29,52,-21,-4,-57,-52,-51,-38,-42,0,0,22,-58,-69,-57,-52,-55,-55,-59,-60,-78,-46,-61,-81,-124,-81,-118,-106,-540,-533,-932,-925,-956,-929,-991,-990,-968,-961]} 1. e4 {[%emt 0:00:03]} e5 {[%emt 0:01:14]} 2. Nf3 {[%emt 0:00:11]} Nc6 {[%emt 0:00:06]} 3. Bb5 {[%emt 0:00:22]} Nge7 {[%emt 0:00:08]} 4. Nc3 {[%emt 0:05:26]} Ng6 {[%emt 0:00:17]} 5. d4 {[%emt 0:01:54]} exd4 {[%emt 0:00:24]} 6. Nxd4 {[%emt 0:00:28]} Nxd4 {[%emt 0:00:07]} 7. Qxd4 {[%emt 0:00:08]} c6 {[%emt 0:00:03]} 8. Be2 {[%emt 0:03:17] White is slightly better.} Qb6 {[%emt 0:00:21]} 9. Qd3 {[%emt 0:01:15]} Be7 {[%emt 0:00:59]} 10. f4 {[%emt 0:12:45]} (10. a3 $1 $14) 10... O-O $11 {[%emt 0:03:40][%cal Od7d5]} 11. Be3 {[%emt 0:09:52]} ({White should play} 11. Bd2 $11) 11... Qxb2 $15 {[%emt 0:11:51]} 12. O-O {[%emt 0:00:44][%cal Oa2a3]} d5 {[%emt 0:14:01]} 13. exd5 {[%emt 0:05:05]} Bf6 {[%emt 0:07:55]} (13... Bf5 $5 14. Qxf5 Qxc3 $15) 14. Ne4 {[%emt 0:14:45]} Bf5 {[%emt 0:01:20] [#] White must now prevent ...Bxe4.} 15. Nxf6+ {[%emt 0:00:06]} (15. Rab1 $11 Bxe4 16. Qxe4 Qxa2 17. Bc4 (17. Rxb7 cxd5 18. Qd3 Rfc8 $17) (17. dxc6 Rae8 $11)) 15... Qxf6 {[%emt 0:00:06]} 16. Qd2 {[%emt 0:05:12]} Rfd8 {[%emt 0:13:09]} 17. c4 {[%emt 0:05:20]} cxd5 {[%emt 0:00:47]} 18. cxd5 {[%emt 0:00:08]} Be4 {[%emt 0:00:51]} 19. Rad1 {[%emt 0:17:23]} Nh4 {[%emt 0:10:51]} 20. g3 {[%emt 0:04:03]} ({But not} 20. Bd4 Qg6 (20... Rxd5 $2 {loses.} 21. Bxf6 Rxd2 22. Rxd2 $18) 21. g3 Rxd5 $17) 20... Nf5 {[%emt 0:00:13]} 21. Bc4 {[%emt 0:02:52]} Rac8 {[%emt 0:05:00]} 22. Bb3 {[%emt 0:00:22]} Qg6 {[%emt 0:00:38][%cal Of5g3] [#] aiming for ...Nxg3! Black has more active pieces.} 23. Rf2 $2 {[%emt 0:08:02][%mdl 8192] White does not recover from this.} (23. Qe1 $17 {is a better chance.}) 23... h5 $19 {[%emt 0:01:23] And now ...h4 would win. Black is clearly winning.} 24. Kf1 {[%emt 0:00:41]} h4 {[%emt 0:11:32]} 25. gxh4 {[%emt 0:00:15]} Qg4 {[%emt 0:00:05]} 26. Bxa7 {[%emt 0:01:08]} Qh3+ {[%emt 0:01:05]} 27. Ke1 {[%emt 0:00:50]} Re8 {[%emt 0:00:06] Weighted Error Value: White=0.65/Black=0.09 (flawless) .  Loses game:     	White=1     	---        Mistake:       	White=3     	---        Inaccurate:     	White=3     	Black=3      OK:         	White=4     	Black=6      Best:        	---       	Black=4} 0-1

[Event "1st Festival Galdar 2024"]
[Site "Galdar"]
[Date "2024.09.05"]
[Round "5.11"]
[White "Brito Garcia, Alfredo"]
[Black "Yankelevich, Lev"]
[Result "1/2-1/2"]
[Annotator "TA"]
[ECO "A04"]
[WhiteElo "2240"]
[BlackElo "2420"]
[PlyCount "43"]
[EventDate "2024.09.02"]
[EventType "swiss"]
[EventCountry "ESP"]
[SourceTitle "playchess.com"]
[Source "ChessBase"]
[SourceQuality "1"]
[TimeControl "5400+30"]

{[%evp 16,43,0,0,5,9,9,-12,0,0,28,-4,41,-37,13,-13,-25,-16,0,10,12,17,16,17,60,27,35,44,83,53]} 1. Nf3 {[%emt 0:00:08]} c5 {[%emt 0:00:47]} 2. g3 {[%emt 0:00:28]} Nc6 {[%emt 0:00:11]} 3. Bg2 {[%emt 0:01:55]} e5 {[%emt 0:00:15]} 4. e4 {[%emt 0:01:04]} g6 {[%emt 0:02:26]} 5. d3 {[%emt 0:03:00]} Bg7 {[%emt 0:00:13]} 6. Be3 {[%emt 0:01:01]} d6 {[%emt 0:03:53]} 7. c3 {[%emt 0:00:51]} Nge7 {[%emt 0:02:42]} 8. O-O {[%emt 0:09:19]} O-O {[%emt 0:00:28]} 9. Qd2 {[%emt 0:05:23]} Re8 {[%emt 0:16:28]} 10. Na3 {[%emt 0:16:31]} b6 {[%emt 0:01:16]} 11. d4 {[%emt 0:02:29]} exd4 {[%emt 0:02:43] The position is equal.} 12. cxd4 {[%emt 0:01:08]} Bg4 {[%emt 0:00:17]} 13. Nc2 {[%emt 0:04:55]} Qc8 {[%emt 0:04:13]} 14. b4 {[%emt 0:09:38]} (14. d5 $14 Bxf3 15. Bxf3) 14... Bh3 {[%emt 0:04:06]} (14... d5 $15 15. exd5 Nxd5) 15. Rad1 {[%emt 0:13:10]} Bxg2 {[%emt 0:00:38]} 16. Kxg2 {[%emt 0:00:07]} cxb4 {[%emt 0:25:01]} 17. Nxb4 {[%emt 0:07:54]} Nxb4 {[%emt 0:05:20]} 18. Qxb4 {[%emt 0:00:08]} d5 {[%emt 0:00:08]} 19. e5 {[%emt 0:02:59]} Qa6 {[%emt 0:01:50]} 20. a4 {[%emt 0:01:53][%cal Ba2a4,Ba4a5][%mdl 32]} Rac8 {[%emt 0:01:39]} 21. Qb5 {[%emt 0:00:47]} Qb7 {[%emt 0:01:00]} 22. a5 {[%emt 0:00:35] Weighted Error Value: White=0.25 (precise) /Black=0.19 (very precise) .  Mistake:       	White=1     	Black=1      Inaccurate:     	White=4     	Black=5      OK:         	White=1     	Black=3      Best:        	---       	Black=1} 1/2-1/2

[Event "1st Festival Galdar 2024"]
[Site "Galdar"]
[Date "2024.09.05"]
[Round "5.12"]
[White "Moreno Diepa, Diego"]
[Black "Fiorito, Joaquin"]
[Result "1/2-1/2"]
[Annotator "TA"]
[ECO "B44"]
[WhiteElo "2168"]
[BlackElo "2402"]
[PlyCount "93"]
[EventDate "2024.09.02"]
[EventType "swiss"]
[EventCountry "ESP"]
[SourceTitle "playchess.com"]
[Source "ChessBase"]
[SourceQuality "1"]
[TimeControl "5400+30"]

{[%evp 17,93,4,11,0,0,-7,0,-1,7,0,22,0,1,-13,-8,-16,-2,-10,-4,-4,-7,-12,-12,-11,-10,-29,-30,-29,-20,-38,-9,-32,0,-36,-36,-106,-78,-71,-84,-69,0,0,0,0,230,249,220,74,100,102,166,0,0,0,0,0,0,0,0,0,0,0,0,0,0,0,0,0,0,0,0,0,0,5,4,0,2,0]} 1. e4 {[%emt 0:00:04]} c5 {[%emt 0:00:08]} 2. Nf3 {[%emt 0:00:05]} Nc6 {[%emt 0:00:05]} 3. d4 {[%emt 0:00:38]} cxd4 {[%emt 0:00:05]} 4. Nxd4 {[%emt 0:00:04]} e6 {[%emt 0:00:25]} 5. c4 {[%emt 0:02:42]} Nf6 {[%emt 0:00:26]} 6. Nc3 {[%emt 0:00:14]} Bb4 {[%emt 0:02:51]} 7. Nxc6 {[%emt 0:01:22]} bxc6 {[%emt 0:01:42]} 8. Bd3 {[%emt 0:02:37]} e5 {[%emt 0:01:38]} 9. O-O {[%emt 0:00:25]} O-O {[%emt 0:00:24]} 10. Bd2 {[%emt 0:05:28]} Bc5 {[%emt 0:07:05]} 11. Qf3 {[%emt 0:09:42]} d6 {[%emt 0:04:00]} 12. h3 {[%emt 0:00:12]} Bd4 {[%emt 0:01:03]} 13. Rad1 {[%emt 0:03:39]} Nd7 {[%emt 0:06:23][%cal Bf6d7,Bd7c5,Bc5e6,Be6d4][%mdl 32]} 14. b3 {[%emt 0:02:33]} Nc5 {[%emt 0:01:55][%cal Of7f5]} 15. Bc2 {[%emt 0:05:09]} Ne6 {[%emt 0:00:59]} 16. Qg3 {[%emt 0:03:32]} Qe7 {[%emt 0:02:15]} 17. Kh1 {[%emt 0:05:30]} Bxc3 {[%emt 0:06:22]} 18. Bxc3 {[%emt 0:02:17][%cal Of2f4]} c5 {[%emt 0:00:05]} 19. f4 {[%emt 0:20:51] [#] f5 would now be deadly.} f6 {[%emt 0:01:46]} 20. Qd3 {[%emt 0:02:20]} Nd4 {[%emt 0:04:13]} 21. b4 {[%emt 0:03:29]} Be6 {[%emt 0:00:42]} 22. Bb3 {[%emt 0:01:40]} Kh8 {[%emt 0:00:39]} 23. Bxd4 {[%emt 0:02:10]} cxd4 {[%emt 0:00:53]} 24. Rc1 {[%emt 0:00:21]} a5 {[%emt 0:00:20]} 25. fxe5 {[%emt 0:03:22]} dxe5 {[%emt 0:02:41]} (25... fxe5 26. Rxf8+ Qxf8 27. c5 Bxb3 28. axb3 $11) 26. c5 {[%emt 0:00:48]} (26. b5 $15 Qc5 27. Bd1) 26... axb4 {[%emt 0:00:20]} 27. Bd5 {[%emt 0:01:42]} Bxd5 {[%emt 0:08:52]} 28. exd5 {[%emt 0:00:12]} Qd7 {[%emt 0:01:09]} (28... Rxa2 29. Qc4 Raa8 30. Rb1 $11) (28... Qf7 $15 29. d6 Rfd8) 29. Qc4 $11 {[%emt 0:01:06][%cal Oc5c6]} Rfc8 {[%emt 0:04:18]} 30. c6 {[%emt 0:01:49]} Qc7 {[%emt 0:03:18]} (30... Qd6 $11 {and Black is okay.} 31. Qc5 Qxc5 32. Rxc5 Kg8) 31. Qxb4 $18 {[%emt 0:07:42] Threatens to win with d6.} Rd8 {[%emt 0:00:04]} 32. Qc5 {[%emt 0:01:03]} (32. Rb1 $18 {and White stays clearly on top.}) 32... h6 $16 {[%emt 0:00:32][%cal Oa8a5] White must now prevent ...Ra5!} (32... Rxa2 $2 33. Ra1 Rxa1 34. Rxa1 $18) (32... Ra5 $2 33. d6 Rxd6 34. Qxd6 Qxd6 35. c7 $18) 33. Rb1 {[%emt 0:02:22] Hoping for Rb7.} Rac8 {[%emt 0:02:01] [#]} (33... Ra5 $16 {was necessary.} 34. Qc4 (34. Rb5 Rxb5 35. Qxb5 e4 $11) 34... e4 (34... Rdxd5 $2 35. Rb7 $18)) 34. Rfc1 $2 {[%emt 0:01:25]} (34. Qc4 $1 $18) 34... d3 $11 {[%emt 0:02:00][%cal Bd4d3,Bd3d2][%mdl 32] The position is equal.} 35. Qc4 {[%emt 0:00:53]} e4 {[%emt 0:10:22]} 36. Qxe4 {[%emt 0:00:28]} d2 {[%emt 0:00:10]} 37. Rd1 {[%emt 0:00:10]} Qa5 {[%emt 0:00:06][%csl LRa2,LRd5]} 38. Rb7 {[%emt 0:05:30]} Qxd5 {[%emt 0:14:28]} (38... Qxa2 $2 {is the wrong capture.} 39. d6 Rg8 (39... Rxd6 $2 40. Qe7 $18) 40. d7 $18) 39. Qxd5 {[%emt 0:00:22]} (39. Qg4 $5 Rg8 $8 (39... Rxc6 40. Qxg7#) 40. Rd7 Qxc6 41. R7xd2 $19) 39... Rxd5 {[%emt 0:00:04][%cal Bd8d5,Bd5e5,Be5e1][%mdl 4128] Endgame. KRR-KRR} 40. Rd7 {[%emt 0:00:15]} Re5 {[%emt 0:00:40] aiming for ...Re1+.} 41. R1xd2 {[%emt 0:00:53]} Rxc6 {[%emt 0:00:03]} 42. a4 {[%emt 0:01:04]} Re1+ {[%emt 0:00:21]} 43. Kh2 {[%emt 0:00:05]} Ra6 {[%emt 0:00:30]} 44. Rb2 {[%emt 0:01:20]} Re5 {[%emt 0:00:10]} 45. Rbb7 {[%emt 0:00:45]} Rg5 {[%emt 0:00:04]} 46. Ra7 {[%emt 0:00:31]} Rc6 {[%emt 0:00:14] Strongly threatening ...Rc2.} 47. Rdc7 {[%emt 0:03:09] Weighted Error Value: White=0.19 (very precise) /Black=0.15 (very precise) .  Loses game:     	---       	Black=1      Missed win:     	White=1     	---        Mistake:       	White=2     	Black=2      Inaccurate:     	White=1     	Black=2      OK:         	White=11    	Black=18     Best:        	White=1     	Black=3} 1/2-1/2

[Event "1st Festival Galdar 2024"]
[Site "Galdar"]
[Date "2024.09.05"]
[Round "5.13"]
[White "Cruz Alvarez de Ron, Dan"]
[Black "Balaji, Aaravamudhan"]
[Result "0-1"]
[Annotator "TA"]
[ECO "C78"]
[WhiteElo "2137"]
[BlackElo "2396"]
[PlyCount "52"]
[EventDate "2024.09.02"]
[EventType "swiss"]
[EventCountry "ESP"]
[SourceTitle "playchess.com"]
[Source "ChessBase"]
[SourceQuality "1"]
[TimeControl "5400+30"]

{[%evp 15,52,8,14,6,12,0,0,0,0,0,12,0,29,10,13,0,0,-6,-1,-22,-17,-41,-2,-20,-6,-97,-85,-78,-67,-414,-402,-395,-399,-408,-402,-435,-409,-502,-404]} 1. e4 {[%emt 0:00:07]} e5 {[%emt 0:00:23]} 2. Nf3 {[%emt 0:00:29]} Nc6 {[%emt 0:00:04]} 3. Bb5 {[%emt 0:02:05][%cal Bf1b5,Bb5a4,Ba4b3][%mdl 32]} a6 {[%emt 0:00:17]} 4. Ba4 {[%emt 0:00:15]} Nf6 {[%emt 0:00:17]} 5. d3 {[%emt 0:00:13]} b5 {[%emt 0:00:03]} 6. Bb3 {[%emt 0:00:07]} Bc5 {[%emt 0:00:05]} 7. O-O {[%emt 0:00:37]} d6 {[%emt 0:01:06]} 8. c3 {[%emt 0:00:11]} h6 {[%emt 0:07:04]} 9. h3 {[%emt 0:06:11]} O-O {[%emt 0:00:41]} 10. a4 {[%emt 0:02:45]} Rb8 {[%emt 0:00:21]} 11. axb5 {[%emt 0:00:16] The position is equal.} axb5 {[%emt 0:00:03]} 12. Re1 {[%emt 0:02:25]} Bb6 {[%emt 0:06:43]} 13. Na3 {[%emt 0:00:57][%cal Bb1a3,Ba3c2,Bc2e3,Be3f5][%mdl 32]} Na5 {[%emt 0:07:36]} 14. Ba2 {[%emt 0:01:37][%cal Ob2b4]} Bd7 {[%emt 0:00:14]} 15. b4 {[%emt 0:01:26]} Nc6 {[%emt 0:00:21]} 16. Nc2 {[%emt 0:02:36]} Ne7 {[%emt 0:05:29]} 17. Ne3 {[%emt 0:05:25]} Ng6 {[%emt 0:01:33]} 18. Nf5 {[%emt 0:01:45]} d5 {[%emt 0:17:51]} 19. Qc2 {[%emt 0:11:57]} (19. Qd2 $5 Bxf5 20. exf5 $11) 19... Re8 {[%emt 0:09:36]} 20. c4 {[%emt 0:05:11]} (20. Qd2 $11 {keeps the balance.} dxe4 21. dxe4) 20... bxc4 $17 {[%emt 0:01:45]} 21. dxc4 {[%emt 0:00:08] [#] Threatens to win with c5.} dxe4 {[%emt 0:03:57]} 22. N3h4 {[%emt 0:01:45][%mdl 8192] White does not recover from this.} (22. Nxh6+ $1 $15 gxh6 23. c5) 22... Nxh4 $19 {[%emt 0:01:54]} 23. Nxh4 {[%emt 0:00:09]} Bd4 {[%emt 0:01:21][%csl LRa1,LRb4]} 24. Rb1 {[%emt 0:00:36]} g5 {[%emt 0:01:02][%cal Og8g7]} 25. c5 {[%emt 0:00:09]} gxh4 {[%emt 0:00:36]} 26. Qd2 {[%emt 0:00:07]} Nh7 {[%emt 0:04:15] Weighted Error Value: White=0.42/Black=0.10 (very precise) .  Loses game:     	White=1     	---        Mistake:       	White=1     	---        Inaccurate:     	---       	Black=2      OK:         	White=4     	Black=7      Best:        	---       	Black=1} 0-1

[Event "1st Festival Galdar 2024"]
[Site "Galdar"]
[Date "2024.09.05"]
[Round "5.14"]
[White "Suarez Uriel, Adrian"]
[Black "Prudhvi Kumar V"]
[Result "1/2-1/2"]
[Annotator "RC"]
[ECO "B12"]
[WhiteElo "2383"]
[BlackElo "2214"]
[PlyCount "151"]
[EventDate "2024.09.02"]
[EventType "swiss"]
[EventCountry "ESP"]
[SourceTitle "playchess.com"]
[Source "ChessBase"]
[SourceQuality "1"]
[TimeControl "5400+30"]

1. e4 {[%emt 0:00:06]} c6 {[%emt 0:00:11]} 2. d4 {[%emt 0:00:05]} d5 {[%emt 0:00:06]} 3. e5 {[%emt 0:00:04]} c5 {[%emt 0:00:04]} 4. Nf3 {[%emt 0:00:03]} cxd4 {[%emt 0:00:06]} 5. Qxd4 {[%emt 0:00:04]} Nc6 {[%emt 0:00:07]} 6. Qf4 {[%emt 0:00:02]} e6 {[%emt 0:00:18]} 7. Nc3 {[%emt 0:00:03]} Nb4 {[%emt 0:00:09]} 8. Qd2 {[%emt 0:00:04]} Ne7 {[%emt 0:00:55]} 9. a3 {[%emt 0:00:24]} Nbc6 {[%emt 0:00:03]} 10. Bd3 {[%emt 0:00:06]} Ng6 {[%emt 0:00:21]} 11. Bxg6 {[%emt 0:00:04]} hxg6 {[%emt 0:00:44]} 12. O-O {[%emt 0:01:13]} Be7 {[%emt 0:00:29]} 13. b4 {[%emt 0:00:18]} a6 {[%emt 0:06:58]} 14. Re1 {[%emt 0:02:07]} Bd7 {[%emt 0:08:36]} 15. Bb2 {[%emt 0:00:51]} Rc8 {[%emt 0:10:47]} 16. Ne2 {[%emt 0:00:28]} Na7 {[%emt 1:08:36]} 17. Rac1 {[%emt 0:05:40]} Ba4 {[%emt 0:00:00]} 18. h3 {[%emt 0:06:28]} Nb5 {[%emt 0:00:00]} 19. Nf4 {[%emt 0:03:41]} Rc4 {[%emt 0:00:00]} 20. g3 {[%emt 0:14:37]} Qc7 {[%emt 0:00:00]} 21. c3 {[%emt 0:00:05]} Kd8 {[%emt 0:00:00]} 22. Ng2 {[%emt 0:04:55]} Kc8 {[%emt 0:00:00]} 23. Ne3 {[%emt 0:02:26]} Rc6 {[%emt 0:00:00]} 24. c4 {[%emt 0:00:18]} dxc4 {[%emt 0:00:00]} 25. Nxc4 {[%emt 0:00:04]} Kb8 {[%emt 0:00:00]} 26. Qf4 {[%emt 0:03:47]} Rc8 {[%emt 0:00:00]} 27. Nfd2 {[%emt 0:05:17]} f5 {[%emt 0:00:00]} 28. h4 {[%emt 0:01:27]} Qd8 {[%emt 0:00:00]} 29. Qe3 {[%emt 0:01:45]} g5 {[%emt 0:00:00]} 30. hxg5 {[%emt 0:00:53]} Bxg5 {[%emt 0:00:00]} 31. f4 {[%emt 0:00:05]} Be7 {[%emt 0:00:00]} 32. Na5 {[%emt 0:07:42]} Rxc1 {[%emt 0:00:00]} 33. Rxc1 {[%emt 0:00:00]} Rxc1+ {[%emt 0:00:00]} 34. Bxc1 {[%emt 0:00:02]} Qd4 {[%emt 0:01:12]} 35. Qxd4 {[%emt 0:00:55]} Nxd4 {[%emt 0:00:03]} 36. Bb2 {[%emt 0:00:20]} Nb5 {[%emt 0:02:25]} 37. Kf2 {[%emt 0:00:37]} Bd1 {[%emt 0:02:39]} 38. Nac4 {[%emt 0:00:13]} Bh5 {[%emt 0:00:54]} 39. Nb3 {[%emt 0:01:12]} Be8 {[%emt 0:01:15]} 40. Nba5 {[%emt 0:05:10]} Kc7 {[%emt 0:01:07]} 41. Ke2 {[%emt 0:08:12]} b6 {[%emt 0:01:12]} 42. Nb3 {[%emt 0:00:02]} Na7 {[%emt 0:00:59]} 43. Bd4 {[%emt 0:00:37]} Nc8 {[%emt 0:00:16]} 44. Ke3 {[%emt 0:01:07]} g5 {[%emt 0:00:22]} 45. Nbd2 {[%emt 0:00:19]} Bc6 {[%emt 0:00:52]} 46. Nb2 {[%emt 0:00:44]} Bd5 {[%emt 0:00:14]} 47. Kd3 {[%emt 0:00:28]} Kc6 {[%emt 0:00:18]} 48. Nf1 {[%emt 0:01:37]} gxf4 {[%emt 0:00:57]} 49. gxf4 {[%emt 0:00:01]} a5 {[%emt 0:00:35]} 50. Bc3 {[%emt 0:00:01]} Be4+ {[%emt 0:00:18]} 51. Kc4 {[%emt 0:01:15]} b5+ {[%emt 0:00:37]} 52. Kd4 {[%emt 0:00:44]} a4 {[%emt 0:00:16]} 53. Ng3 {[%emt 0:00:59]} Bd5 {[%emt 0:00:29]} 54. Ke3 {[%emt 0:00:33]} Nb6 {[%emt 0:00:38]} 55. Bd4 {[%emt 0:00:21]} Nc4+ {[%emt 0:00:38]} 56. Nxc4 {[%emt 0:00:01]} Bxc4 {[%emt 0:00:02]} 57. Nh5 {[%emt 0:01:46]} Bh4 {[%emt 0:00:35]} 58. Bc5 {[%emt 0:01:24]} Be1 {[%emt 0:00:27]} 59. Nf6 {[%emt 0:00:06]} Bd5 {[%emt 0:00:30]} 60. Ng8 {[%emt 0:00:04]} Bc4 {[%emt 0:00:28]} 61. Nf6 {[%emt 0:01:24]} Bc3 {[%emt 0:00:52]} 62. Bd4 {[%emt 0:00:01]} Be1 {[%emt 0:00:02]} 63. Bb2 {[%emt 0:01:20]} Bd5 {[%emt 0:00:23]} 64. Bc1 {[%emt 0:00:50]} Bh4 {[%emt 0:00:26]} 65. Ne8 {[%emt 0:00:49]} Bd8 {[%emt 0:00:42]} 66. Bd2 {[%emt 0:00:58]} Bb6+ {[%emt 0:00:16]} 67. Kd3 {[%emt 0:00:25]} Bc4+ {[%emt 0:00:11]} 68. Kc3 {[%emt 0:00:06]} Bf2 {[%emt 0:00:51]} 69. Nd6 {[%emt 0:00:30]} Bf1 {[%emt 0:00:28]} 70. Ne8 {[%emt 0:00:27]} Bc4 {[%emt 0:00:09]} 71. Bc1 {[%emt 0:00:16]} Bg1 {[%emt 0:00:30]} 72. Nf6 {[%emt 0:02:37]} Bf2 {[%emt 0:00:16]} 73. Bd2 {[%emt 0:00:05]} Bf1 {[%emt 0:00:41]} 74. Kc2 {[%emt 0:01:16]} Bc4 {[%emt 0:00:16]} 75. Kc3 {[%emt 0:01:27]} Bf1 {[%emt 0:00:09]} 76. Bc1 1/2-1/2

[Event "1st Festival Galdar 2024"]
[Site "Galdar"]
[Date "2024.09.05"]
[Round "5.15"]
[White "Barlov, Dragan"]
[Black "Marrero Rodriguez, Jorge"]
[Result "1-0"]
[Annotator "TA"]
[ECO "C54"]
[WhiteElo "2375"]
[BlackElo "2169"]
[PlyCount "67"]
[EventDate "2024.09.02"]
[EventType "swiss"]
[EventCountry "ESP"]
[SourceTitle "playchess.com"]
[Source "ChessBase"]
[SourceQuality "1"]
[TimeControl "5400+30"]

{[%evp 21,67,14,14,1,4,0,0,0,0,0,-7,-3,8,0,160,141,232,29,18,29,27,22,16,24,40,26,32,18,138,50,68,84,193,190,172,66,562,562,1292,1330,1470,1348,1831,1538,5589,5581,2895,2632]} 1. e4 {[%emt 0:00:30]} e5 {[%emt 0:00:12]} 2. Bc4 {[%emt 0:00:38]} Nf6 {[%emt 0:00:10]} 3. d3 {[%emt 0:00:06]} Bc5 {[%emt 0:00:21]} 4. Nf3 {[%emt 0:01:02]} Nc6 {[%emt 0:00:10]} 5. O-O {[%emt 0:03:16]} a6 {[%emt 0:00:12]} 6. c3 {[%emt 0:00:41]} d6 {[%emt 0:00:10]} 7. Bb3 {[%emt 0:07:16]} Ba7 {[%emt 0:00:36]} 8. Nbd2 {[%emt 0:00:54]} O-O {[%emt 0:00:10]} 9. h3 {[%emt 0:03:46]} h6 {[%emt 0:02:22]} 10. Re1 {[%emt 0:00:58]} Re8 {[%emt 0:00:16]} 11. Nf1 {[%emt 0:01:46]} Be6 {[%emt 0:00:24]} 12. Bc2 {[%emt 0:08:32]} d5 {[%emt 0:02:48]} 13. Qe2 {[%emt 0:06:31]} Qd7 {[%emt 0:04:00]} 14. Ng3 {[%emt 0:00:55] The position is equal.} Rad8 {[%emt 0:01:17]} 15. Kh2 {[%emt 0:13:11]} b5 {[%emt 0:07:14] Threatens to win with ...dxe4.} 16. Nh4 {[%emt 0:07:02]} dxe4 {[%emt 0:10:52]} 17. dxe4 {[%emt 0:00:15]} Bc4 $2 {[%emt 0:00:27]} (17... Ne7 $11) 18. Qf3 $16 {[%emt 0:00:17]} Bd3 {[%emt 0:00:23] [#]} (18... Ne7 $16) 19. Rd1 $2 {[%emt 0:04:22]} ({White has to play} 19. Bb3 $1 $18 {Black must now prevent Ngf5.} Na5 20. Bxh6 Nxb3 21. axb3) 19... Nd4 $11 {[%emt 0:00:07] Repels Ngf5} 20. cxd4 {[%emt 0:01:27]} Bxc2 {[%emt 0:00:07]} 21. Rd2 {[%emt 0:00:15] dxe5 is the strong threat.} Bxe4 $1 {[%emt 0:00:12]} 22. Nxe4 {[%emt 0:00:34]} Nxe4 {[%emt 0:00:03]} 23. Qxe4 {[%emt 0:00:09]} exd4 {[%emt 0:00:05]} 24. Qf3 {[%emt 0:10:49]} Re1 {[%emt 0:03:01] [#]} (24... c5 $11) 25. Nf5 {[%emt 0:05:28]} (25. b4 $1 $16) 25... Qd5 {[%emt 0:04:41]} 26. Qg4 {[%emt 0:04:01][%csl Gf5][%cal Rg4g7]} g6 {[%emt 0:00:29]} (26... Qe5+ $16 27. f4 Qf6) 27. Nxh6+ {[%emt 0:00:56]} Kg7 {[%emt 0:00:17][%cal Oc7c5] ...c5! would now be deadly.} 28. Rd3 {[%emt 0:01:38]} (28. Re2 $18 Rxe2 29. Qxe2) 28... Rde8 {[%emt 0:17:47][%mdl 8192] This move loses the game for Black.} ({Black should play} 28... Rxc1 $14 29. Rxc1 Kxh6) 29. Rf3 $18 {[%emt 0:00:38] White is clearly winning.} f6 {[%emt 0:07:16]} 30. Rg3 {[%emt 0:03:42]} g5 {[%emt 0:01:48]} 31. Qh5 {[%emt 0:01:54][%cal Rc1g5] Bxg5! would kill now.} R8e5 {[%emt 0:06:55]} 32. Ng4 {[%emt 0:00:35]} d3 {[%emt 0:02:58]} 33. Qh6+ {[%emt 0:00:40]} Kf7 {[%emt 0:00:11]} 34. Qxf6+ {[%emt 0:00:27] Weighted Error Value: White=0.36/Black=0.74.  Loses game:     	---       	Black=1      Missed win:     	White=1     	---        Mistake:       	White=2     	Black=4      Inaccurate:     	---       	Black=1      OK:         	White=5     	Black=7      Best:        	White=3     	---        Strong:       	---       	Black=1} 1-0